bitfinex-derivatives/quotes_BTCF0:USTF0_20241008
["timestamp","ask_amount","ask_price","bid_price","bid_amount"]
[1728365722076,0.066041,62469.0,62468.0,0.43683771]
[1728365722484,0.066041,62469.0,62468.0,0.3888]
[1728365728984,0.066041,62469.0,62468.0,0.028]
[1728365733881,0.066041,62469.0,62468.0,0.092042]
[1728365734190,0.066041,62469.0,62468.0,0.028]
[1728365738391,0.066041,62469.0,62468.0,0.07603771]
[1728365739086,0.066041,62469.0,62468.0,0.028]
[1728365739290,0.186041,62469.0,62468.0,0.028]
[1728365744688,0.546841,62469.0,62468.0,0.028]
[1728365747498,0.545841,62469.0,62468.0,0.014]
[1728365747691,0.546841,62469.0,62468.0,0.028]
[1728365748294,0.186041,62469.0,62468.0,0.028]
[1728365749295,0.546841,62469.0,62468.0,0.028]
[1728365758400,0.546841,62469.0,62468.0,0.02]
[1728365760101,0.545841,62469.0,62468.0,0.01]
[1728365760307,0.546841,62469.0,62468.0,0.021]
[1728365761006,0.544841,62469.0,62460.0,0.1312]
[1728365761201,0.064049,62461.0,62460.0,0.12]
[1728365762300,0.064049,62461.0,62460.0,0.121]
[1728365763605,0.065049,62461.0,62460.0,0.128]
[1728365763807,0.066049,62461.0,62460.0,0.136]
[1728365764107,0.008,62479.0,62461.0,0.48024]
[1728365764300,0.061,62492.0,62486.0,0.064023]
[1728365764606,0.061,62492.0,62491.0,0.4808]
[1728365764804,0.0308,62492.0,62491.0,0.4808]
[1728365766800,0.0338,62492.0,62491.0,0.4808]
[1728365767006,0.0368,62492.0,62491.0,0.4808]
[1728365767403,0.0338,62492.0,62491.0,0.4808]
[1728365767599,0.003,62492.0,62491.0,0.4808]
[1728365768708,0.003,62492.0,62491.0,0.544818]
[1728365770807,0.12,62509.0,62491.0,1.624898]
[1728365771107,0.12,62509.0,62504.0,0.064005]
[1728365772011,0.12,62509.0,62506.0,0.064002]
[1728365772905,0.123,62509.0,62506.0,0.064002]
[1728365773510,0.12,62509.0,62506.0,0.064002]
[1728365773712,0.12,62509.0,62506.0,0.065002]
[1728365774607,0.12,62509.0,62506.0,0.066002]
[1728365775513,0.12,62509.0,62506.0,0.002]
[1728365775715,0.0329,62511.0,62508.0,0.12]
[1728365775910,0.0329,62511.0,62510.0,0.063999]
[1728365776408,0.51084991,62512.0,62511.0,0.063998]
[1728365776409,0.39084991,62512.0,62511.0,0.063998]
[1728365776610,0.39000991,62512.0,62511.0,0.063998]
[1728365777716,0.02920991,62512.0,62511.0,0.064998]
[1728365777906,0.002,62512.0,62511.0,0.065998]
[1728365779509,0.00196,62512.0,62511.0,0.065998]
[1728365779711,0.00196,62512.0,62511.0,0.185998]
[1728365786314,0.00196,62512.0,62511.0,0.065998]
[1728365787217,0.03506,62512.0,62511.0,0.065998]
[1728365791118,0.099057,62512.0,62511.0,0.002]
[1728365799024,0.064004,62505.0,62504.0,0.40879879]
[1728365799221,0.184004,62505.0,62504.0,0.3608]
[1728365799430,0.184004,62505.0,62504.0,0.40879879]
[1728365799625,0.064004,62505.0,62504.0,0.3608]
[1728365800333,0.068004,62505.0,62504.0,0.41079879]
[1728365801733,0.188004,62505.0,62504.0,0.3628]
[1728365802631,0.188004,62505.0,62504.0,0.002]
[1728365805543,0.21646632,62505.0,62504.0,0.002]
[1728365807638,0.24826632,62505.0,62504.0,0.002]
[1728365813245,0.12826632,62505.0,62504.0,0.002]
[1728365813848,0.06426232,62505.0,62504.0,0.002]
[1728365815349,0.004,62505.0,62504.0,0.186005]
[1728365822641,0.004,62505.0,62504.0,0.665965]
[1728365822849,0.424793,62517.0,62504.0,1.265965]
[1728365822850,0.063993,62517.0,62504.0,1.265965]
[1728365823053,0.064873,62517.0,62514.0,0.544795]
[1728365823247,0.063993,62517.0,62514.0,0.544795]
[1728365823946,0.004,62515.0,62514.0,0.544795]
[1728365824248,0.006,62515.0,62514.0,0.544795]
[1728365824559,0.002,62515.0,62514.0,0.545795]
[1728365825054,0.063993,62516.0,62514.0,0.4828]
[1728365826050,0.063993,62516.0,62514.0,0.546795]
[1728365826861,0.02932397,62517.0,62515.0,0.063994]
[1728365827054,0.02932397,62517.0,62514.0,0.4828]
[1728365827055,0.094388,62521.0,62514.0,0.48388]
[1728365827362,0.094388,62521.0,62517.0,0.183992]
[1728365828550,0.094388,62521.0,62517.0,0.184992]
[1728365828853,0.02567594,62518.0,62517.0,0.184992]
[1728365829283,0.02667594,62518.0,62517.0,0.184992]
[1728365829751,0.02567594,62518.0,62517.0,0.185992]
[1728365829956,0.02667594,62518.0,62517.0,0.185992]
[1728365832855,0.00340008,62518.0,62517.0,0.185992]
[1728365833448,0.00340008,62518.0,62517.0,1.265872]
[1728365834252,0.00440008,62518.0,62517.0,1.265872]
[1728365838761,0.00440008,62518.0,62517.0,0.665872]
[1728365839358,0.00436008,62518.0,62517.0,0.665872]
[1728365842955,1e-08,62518.0,62517.0,0.665872]
[1728365844161,0.00100001,62518.0,62517.0,0.665872]
[1728365844756,0.00100001,62518.0,62517.0,0.664872]
[1728365844956,0.001,62518.0,62517.0,0.665872]
[1728365845859,0.0331,62524.0,62523.0,0.063986]
[1728365846082,0.0331,62524.0,62523.0,0.544786]
[1728365846968,0.0331,62524.0,62523.0,0.545786]
[1728365847164,0.4551039,62530.0,62523.0,0.4818]
[1728365847359,0.4551039,62530.0,62527.0,0.063981]
[1728365848065,0.47786965,62530.0,62527.0,0.063981]
[1728365848380,0.47786965,62530.0,62528.0,0.06398]
[1728365848575,0.125479,62529.0,62528.0,0.06398]
[1728365849763,0.125479,62529.0,62528.0,0.06498]
[1728365850970,0.125479,62529.0,62528.0,0.06598]
[1728365855767,0.0615,62529.0,62528.0,0.06598]
[1728365865579,0.0615,62529.0,62520.0,0.02708725]
[1728365865580,0.063986,62523.0,62520.0,0.0037]
[1728365865779,1.19867977,62529.0,62519.0,0.36192]
[1728365865780,0.12,62524.0,62519.0,0.36192]
[1728365865983,0.0573831,62523.0,62522.0,0.063986]
[1728365866485,0.0573831,62524.0,62522.0,0.063986]
[1728365866875,0.0573831,62524.0,62523.0,0.12]
[1728365867271,0.063982,62527.0,62524.0,0.063984]
[1728365867482,0.063982,62527.0,62526.0,0.12]
[1728365869679,0.065982,62527.0,62526.0,0.121]
[1728365870275,0.067982,62527.0,62526.0,0.122]
[1728365870481,0.067982,62527.0,62526.0,0.002]
[1728365872880,0.067982,62527.0,62520.0,0.3608]
[1728365873080,0.063988,62521.0,62520.0,0.3608]
[1728365874182,0.063988,62521.0,62520.0,0.3618]
[1728365874480,0.064988,62521.0,62520.0,0.3628]
[1728365875575,0.066988,62521.0,62520.0,0.3628]
[1728365875779,0.003,62521.0,62520.0,0.3628]
[1728365875987,0.003,62521.0,62520.0,0.426789]
[1728365876888,0.003,62521.0,62520.0,0.546789]
[1728365882891,0.0347,62521.0,62520.0,0.546789]
[1728365884088,0.0347,62521.0,62520.0,0.426789]
[1728365884487,0.098688,62521.0,62520.0,0.3628]
[1728365884693,0.098688,62521.0,62520.0,0.002]
[1728365884991,0.218688,62521.0,62520.0,0.002]
[1728365885190,0.27607799,62521.0,62520.0,0.002]
[1728365886090,0.063992,62517.0,62515.0,0.063993]
[1728365886289,0.1511,62516.0,62514.0,0.3608]
[1728365886478,0.1511,62516.0,62510.0,0.00239921]
[1728365886479,0.063997,62512.0,62510.0,0.00239921]
[1728365886682,0.183998,62511.0,62510.0,0.00239921]
[1728365887685,0.063998,62511.0,62510.0,0.00239921]
[1728365888085,0.064998,62511.0,62510.0,0.00239921]
[1728365888990,0.065998,62511.0,62510.0,0.00239921]
[1728365890688,0.08953462,62511.0,62510.0,0.00239921]
[1728365892292,0.20953462,62511.0,62510.0,0.00239921]
[1728365902690,0.08953462,62511.0,62510.0,0.00239921]
[1728365904801,0.02553662,62511.0,62510.0,0.48319921]
[1728365904988,0.002,62511.0,62510.0,0.54719821]
[1728365916411,0.002,62511.0,62510.0,0.42719821]
[1728365916613,0.002,62511.0,62510.0,0.54719821]
[1728365923808,0.185998,62511.0,62510.0,0.00239921]
[1728365924005,0.065998,62511.0,62510.0,0.00239921]
[1728365924217,0.185998,62511.0,62510.0,0.00239921]
[1728365926519,0.546798,62511.0,62510.0,0.00239921]
[1728365927020,0.185998,62511.0,62510.0,0.00239921]
[1728365927215,0.57044726,62511.0,62510.0,0.00239921]
[1728365932716,0.60174726,62511.0,62510.0,0.00239921]
[1728365933618,0.24094726,62511.0,62510.0,0.00239921]
[1728365933824,0.60174726,62511.0,62510.0,0.00239921]
[1728365935028,0.24094726,62511.0,62510.0,0.00239921]
[1728365935326,0.60174726,62511.0,62510.0,0.00239921]
[1728365936525,0.48174726,62511.0,62510.0,0.00239921]
[1728365936722,0.60174726,62511.0,62510.0,0.00239921]
[1728365942227,0.24094726,62511.0,62510.0,0.00239921]
[1728365942530,0.60174726,62511.0,62510.0,0.00239921]
[1728365943528,0.24094726,62511.0,62510.0,0.00239921]
[1728365943736,0.60174726,62511.0,62510.0,0.00239921]
[1728365943935,0.48174726,62511.0,62510.0,0.00239921]
[1728365948835,0.064003,62506.0,62505.0,0.0037]
[1728365949130,0.12,62506.0,62502.0,0.0479432]
[1728365949532,0.12,62506.0,62503.0,0.0479432]
[1728365949740,0.12,62506.0,62502.0,0.0479432]
[1728365949934,0.064005,62504.0,62502.0,0.0479432]
[1728365950130,0.184005,62504.0,62502.0,0.0479432]
[1728365950337,0.184005,62504.0,62503.0,0.0479432]
[1728365950928,0.064005,62504.0,62503.0,0.0479432]
[1728365951128,0.184005,62504.0,62503.0,0.0479432]
[1728365951632,0.184005,62504.0,62502.0,0.004]
[1728365951836,0.064006,62503.0,62502.0,0.004]
[1728365952640,0.064006,62503.0,62499.0,0.04799953]
[1728365952838,0.12,62500.0,62499.0,0.04799953]
[1728365953566,0.184009,62500.0,62499.0,0.04799953]
[1728365954133,0.184009,62500.0,62499.0,0.05799953]
[1728365954337,0.184009,62500.0,62499.0,0.01]
[1728365955039,0.184009,62500.0,62499.0,0.02]
[1728365957131,0.064009,62500.0,62499.0,0.02]
[1728365960344,0.489909,62500.0,62499.0,0.02]
[1728365966445,1.569909,62500.0,62493.0,0.0149]
[1728365966652,0.064016,62493.0,62492.0,0.00239998]
[1728365968052,0.457716,62493.0,62492.0,0.00239998]
[1728365968548,0.457716,62493.0,62492.0,0.01639998]
[1728365968853,0.458716,62493.0,62492.0,0.03039998]
[1728365969643,0.48221676,62493.0,62492.0,0.03039998]
[1728365969857,0.48221676,62493.0,62492.0,0.028]
[1728365970447,0.48221676,62493.0,62484.0,0.0149]
[1728365970448,0.41820076,62493.0,62484.0,0.0149]
[1728365970641,0.41820076,62493.0,62479.0,0.06403]
[1728365970642,0.12,62485.0,62480.0,0.0149]
[1728365970954,0.3608,62486.0,62479.0,0.06403]
[1728365970955,0.12,62481.0,62479.0,0.06403]
[1728365971946,0.12,62481.0,62480.0,0.018]
[1728365972550,0.121,62481.0,62480.0,0.011]
[1728365972750,0.3688,62499.0,62480.0,0.12]
[1728365972949,0.02438076,62493.0,62489.0,0.12]
[1728365973143,0.02350076,62493.0,62489.0,0.12]
[1728365973345,0.064014,62496.0,62492.0,0.12]
[1728365974348,0.064014,62495.0,62492.0,0.12]
[1728365974747,0.064014,62495.0,62490.0,0.064019]
[1728365975050,0.064014,62495.0,62491.0,0.064017]
[1728365975253,0.12,62494.0,62487.0,0.0322]
[1728365975448,0.4808,62490.0,62488.0,0.064021]
[1728365976045,0.3608,62490.0,62488.0,0.064021]
[1728365976248,0.064021,62489.0,62485.0,0.064024]
[1728365977154,0.064021,62489.0,62482.0,0.064027]
[1728365977656,0.064021,62489.0,62487.0,0.001]
[1728365978057,0.065021,62489.0,62485.0,0.003]
[1728365978247,0.065021,62489.0,62488.0,0.002]
[1728365979054,0.066021,62489.0,62487.0,0.002]
[1728365979251,0.08965685,62489.0,62487.0,0.002]
[1728365979961,0.08965685,62489.0,62488.0,0.003]
[1728365980960,0.08865685,62489.0,62488.0,0.003]
[1728365981151,0.08965685,62489.0,62488.0,0.006]
[1728365982056,0.08965685,62489.0,62488.0,0.003]
[1728365982951,0.08965685,62489.0,62488.0,0.005]
[1728365983660,0.12115685,62489.0,62488.0,0.005]
[1728365986856,0.05713585,62489.0,62478.0,0.0037]
[1728365987059,0.06403,62480.0,62475.0,0.0037]
[1728365987255,0.06403,62480.0,62475.0,0.064034]
[1728365987743,0.06403,62480.0,62474.0,0.12]
[1728365987744,0.4816,62482.0,62474.0,0.12]
[1728365988069,0.3608,62482.0,62481.0,0.12]
[1728365989356,0.3618,62482.0,62481.0,0.121]
[1728365989848,0.3618,62482.0,62481.0,0.1527]
[1728365990454,0.3628,62482.0,62481.0,0.1527]
[1728365991655,0.002,62482.0,62481.0,0.216729]
[1728366003360,0.002,62482.0,62481.0,0.26471869]
[1728366003562,0.002,62482.0,62481.0,0.216729]
[1728366005468,0.002,62482.0,62481.0,1.296889]
[1728366005865,0.002,62482.0,62481.0,1.36081327]
[1728366006664,0.0037,62489.0,62481.0,1.36081327]
[1728366006867,0.0304,62494.0,62491.0,0.064018]
[1728366006868,0.0037,62492.0,62491.0,0.064018]
[1728366007167,0.064017,62493.0,62492.0,0.064017]
[1728366007868,0.42664,62497.0,62494.0,0.064015]
[1728366007869,0.064013,62496.0,62494.0,0.064015]
[1728366008069,0.064013,62496.0,62495.0,0.184014]
[1728366009268,0.065013,62496.0,62495.0,0.184014]
[1728366010370,0.066013,62496.0,62495.0,0.184014]
[1728366013278,0.002,62496.0,62495.0,0.184014]
[1728366014570,0.002,62496.0,62495.0,0.544814]
[1728366017886,0.001,62496.0,62495.0,0.544814]
[1728366018081,0.0328,62497.0,62496.0,0.064013]
[1728366020881,0.0378,62497.0,62496.0,0.064013]
[1728366024085,0.0378,62497.0,62496.0,0.184013]
[1728366025994,0.005,62497.0,62496.0,0.184013]
[1728366026382,0.003,62497.0,62496.0,0.184013]
[1728366026695,0.005,62497.0,62496.0,0.184013]
[1728366026986,0.002,62497.0,62496.0,0.184013]
[1728366027292,0.001,62497.0,62496.0,0.185013]
[1728366027794,0.0037,62503.0,62501.0,0.064008]
[1728366027986,0.0037,62503.0,62496.0,0.122]
[1728366027987,0.0037,62507.0,62502.0,0.12]
[1728366028191,0.0929,62509.0,62508.0,0.064001]
[1728366029193,0.0626,62509.0,62508.0,0.064001]
[1728366030593,0.0756,62509.0,62508.0,0.064001]
[1728366032589,0.1396,62509.0,62508.0,0.064001]
[1728366033480,0.0756,62509.0,62501.0,0.064007]
[1728366033684,0.0756,62509.0,62500.0,0.3757]
[1728366033685,0.064004,62505.0,62504.0,0.184005]
[1728366034989,0.064004,62505.0,62504.0,0.12]
[1728366035198,0.064004,62505.0,62504.0,0.184005]
[1728366035489,0.064004,62505.0,62504.0,0.12]
[1728366036393,0.069004,62505.0,62504.0,0.12]
[1728366036887,0.074004,62505.0,62504.0,0.12]
[1728366037486,0.079004,62505.0,62504.0,0.12]
[1728366037791,0.078004,62505.0,62504.0,0.12]
[1728366038981,0.10070405,62505.0,62504.0,0.12]
[1728366039387,0.09970405,62505.0,62504.0,0.12]
[1728366039992,0.09870405,62505.0,62504.0,0.12]
[1728366040191,0.09770405,62505.0,62504.0,0.12]
[1728366040494,0.15370005,62505.0,62500.0,0.12]
[1728366040798,0.064012,62498.0,62496.0,0.064012]
[1728366040990,0.12,62497.0,62496.0,0.064012]
[1728366041191,0.064007,62502.0,62493.0,0.12]
[1728366041192,0.12,62500.0,62497.0,0.064012]
[1728366041591,0.0615,62499.0,62497.0,0.064012]
[1728366043298,0.004,62498.0,62497.0,0.064012]
[1728366043689,0.0705,62499.0,62497.0,0.064012]
[1728366045497,0.0665,62499.0,62497.0,0.064012]
[1728366045699,0.003,62498.0,62497.0,0.064012]
[1728366046699,0.0665,62499.0,62497.0,0.064012]
[1728366047001,0.004,62498.0,62497.0,0.064012]
[1728366047595,0.007,62498.0,62497.0,0.064012]
[1728366047797,0.007,62498.0,62497.0,0.424812]
[1728366048494,0.007,62498.0,62497.0,0.064012]
[1728366049300,0.005,62498.0,62497.0,0.064012]
[1728366049810,0.004,62498.0,62497.0,0.064012]
[1728366050508,0.002,62498.0,62497.0,0.064012]
[1728366050711,0.001,62498.0,62497.0,0.064012]
[1728366053006,0.002,62498.0,62497.0,0.064012]
[1728366053312,0.003,62498.0,62497.0,0.064012]
[1728366053715,0.001,62498.0,62497.0,0.064012]
[1728366053913,0.005,62498.0,62497.0,0.424812]
[1728366054616,0.004,62498.0,62497.0,0.424812]
[1728366056321,0.005,62498.0,62497.0,0.424812]
[1728366057418,0.002,62498.0,62497.0,0.424812]
[1728366057726,0.005,62498.0,62497.0,0.424812]
[1728366059419,0.003,62498.0,62497.0,0.424812]
[1728366059726,0.005,62498.0,62497.0,0.424812]
[1728366062926,0.005,62498.0,62497.0,0.064012]
[1728366063125,0.004,62498.0,62497.0,0.064012]
[1728366063625,0.003,62498.0,62497.0,0.064012]
[1728366067227,0.001,62498.0,62497.0,0.064012]
[1728366067430,0.003,62498.0,62497.0,0.064012]
[1728366073023,0.002,62498.0,62497.0,0.064012]
[1728366073224,0.003,62498.0,62497.0,0.064012]
[1728366075418,0.002,62498.0,62497.0,0.064012]
[1728366075625,0.003,62498.0,62497.0,0.064012]
[1728366080628,0.001,62498.0,62497.0,0.064012]
[1728366080828,0.003,62498.0,62497.0,0.064012]
[1728366082632,0.002,62498.0,62497.0,0.064012]
[1728366084342,0.001,62498.0,62497.0,0.064012]
[1728366087140,0.001,62498.0,62497.0,1.144012]
[1728366087640,0.3645,62507.0,62506.0,0.064003]
[1728366087948,0.3608,62507.0,62506.0,0.184003]
[1728366088643,0.3698,62507.0,62506.0,0.184003]
[1728366089037,0.3798,62507.0,62506.0,0.184003]
[1728366090536,0.019,62507.0,62506.0,0.184003]
[1728366091351,0.019,62507.0,62506.0,0.71197359]
[1728366091843,0.019,62507.0,62506.0,0.663963]
[1728366092645,0.019,62507.0,62506.0,1.263963]
[1728366093652,0.019,62507.0,62506.0,0.663963]
[1728366094247,0.019,62507.0,62506.0,0.68669643]
[1728366094450,0.0188,62507.0,62506.0,0.68669643]
[1728366095647,0.0037,62514.0,62513.0,0.063996]
[1728366095835,0.0947,62519.0,62518.0,0.063991]
[1728366096046,0.0947,62519.0,62518.0,0.183991]
[1728366097141,0.1087,62519.0,62518.0,0.184991]
[1728366098444,0.1227,62519.0,62518.0,0.185991]
[1728366102254,0.0902,62519.0,62518.0,0.546791]
[1728366103648,0.0762,62519.0,62518.0,0.545791]
[1728366103842,0.0902,62519.0,62518.0,0.546791]
[1728366104645,0.2102,62519.0,62518.0,0.3628]
[1728366104844,0.063992,62517.0,62515.0,0.063993]
[1728366105051,0.571,62519.0,62511.0,0.4808]
[1728366105052,0.12,62516.0,62511.0,0.4808]
[1728366105360,0.063996,62513.0,62511.0,0.424798]
[1728366106053,0.063996,62513.0,62512.0,0.063997]
[1728366108146,0.072996,62513.0,62512.0,0.064997]
[1728366108355,0.082996,62513.0,62512.0,0.065997]
[1728366109154,0.019,62513.0,62512.0,0.065997]
[1728366109751,0.04277299,62513.0,62512.0,0.065997]
[1728366112553,0.04277299,62513.0,62512.0,0.002]
[1728366112750,0.22676899,62513.0,62512.0,0.002]
[1728366113254,0.58756899,62513.0,62512.0,0.002]
[1728366119647,0.04277299,62513.0,62512.0,0.185997]
[1728366119854,0.019,62513.0,62512.0,0.185997]
[1728366120050,0.019,62513.0,62512.0,0.23390774]
[1728366120660,0.019,62513.0,62512.0,0.23392961]
[1728366120855,0.019,62513.0,62512.0,0.065997]
[1728366121247,0.3798,62513.0,62512.0,0.065997]
[1728366121552,0.0037,62532.0,62527.0,0.063981]
[1728366121754,0.0325,62535.0,62527.0,0.4808]
[1728366121953,0.0325,62535.0,62534.0,0.544774]
[1728366122454,0.0325,62535.0,62534.0,0.604774]
[1728366123154,0.0385,62535.0,62534.0,0.604774]
[1728366123559,0.0525,62535.0,62534.0,0.605774]
[1728366124356,0.0525,62535.0,62534.0,0.606774]
[1728366124563,0.05242,62535.0,62534.0,0.606774]
[1728366133666,0.05242,62535.0,62534.0,0.245974]
[1728366133867,0.05242,62535.0,62534.0,0.606774]
[1728366135473,0.05242,62535.0,62534.0,0.245974]
[1728366135770,0.05242,62535.0,62534.0,0.426774]
[1728366137671,0.116393,62535.0,62534.0,0.426774]
[1728366137874,0.05242,62535.0,62534.0,0.426774]
[1728366138176,0.07126841,62535.0,62534.0,0.426774]
[1728366138474,0.05242,62535.0,62534.0,0.426774]
[1728366144462,0.05242,62535.0,62534.0,0.546774]
[1728366145477,0.031,62542.0,62541.0,0.063967]
[1728366145669,0.033,62548.0,62547.0,0.063961]
[1728366145866,0.033,62548.0,62547.0,0.183961]
[1728366146469,0.033,62548.0,62547.0,0.243961]
[1728366147078,0.039,62548.0,62547.0,0.244961]
[1728366148371,0.039,62548.0,62547.0,0.245961]
[1728366149481,0.10296,62548.0,62547.0,0.182]
[1728366149784,0.10296,62548.0,62547.0,0.002]
[1728366151787,0.039,62548.0,62547.0,0.065961]
[1728366153278,0.10296,62548.0,62547.0,0.065961]
[1728366154684,0.10292,62548.0,62547.0,0.065961]
[1728366157287,0.10292,62548.0,62547.0,0.002]
[1728366157877,0.16028559,62548.0,62547.0,0.002]
[1728366158078,0.15201369,62548.0,62547.0,0.002]
[1728366158392,0.20937928,62548.0,62547.0,0.002]
[1728366159591,0.20937922,62548.0,62547.0,0.002]
[1728366160883,0.15201363,62548.0,62547.0,0.002]
[1728366161185,0.20937915,62548.0,62547.0,0.002]
[1728366162187,0.063964,62544.0,62543.0,0.3608]
[1728366162379,0.11305763,62544.0,62543.0,0.3608]
[1728366162575,0.17042315,62544.0,62543.0,0.3608]
[1728366163678,0.17142315,62544.0,62543.0,0.3618]
[1728366163883,0.17142315,62544.0,62543.0,0.3628]
[1728366164474,0.17142573,62544.0,62543.0,0.3628]
[1728366164990,0.11406021,62544.0,62543.0,0.3628]
[1728366165979,0.064964,62544.0,62543.0,0.3628]
[1728366168488,0.184964,62544.0,62543.0,0.3628]
[1728366169586,0.184964,62544.0,62543.0,0.36268]
[1728366173091,0.23406017,62544.0,62543.0,0.36268]
[1728366173289,0.29142866,62544.0,62543.0,0.36268]
[1728366175704,0.22746466,62544.0,62543.0,0.36268]
[1728366176889,0.29142866,62544.0,62543.0,0.36268]
[1728366181199,0.184964,62544.0,62543.0,0.36268]
[1728366182997,0.184964,62544.0,62543.0,0.002]
[1728366183702,0.064964,62544.0,62543.0,0.002]
[1728366184394,0.064964,62544.0,62543.0,0.3628]
[1728366184901,0.064964,62544.0,62543.0,0.426765]
[1728366187897,0.001,62544.0,62543.0,0.426765]
[1728366190597,0.001,62544.0,62543.0,0.3628]
[1728366190598,0.064964,62544.0,62543.0,0.3628]
[1728366192204,0.064964,62544.0,62543.0,0.426765]
[1728366193514,0.064964,62544.0,62543.0,0.065965]
[1728366195017,0.064964,62544.0,62543.0,0.002]
[1728366195206,0.184964,62544.0,62543.0,0.002]
[1728366196118,0.23406012,62544.0,62543.0,0.002]
[1728366196308,0.29142855,62544.0,62543.0,0.002]
[1728366196507,0.17142855,62544.0,62543.0,0.002]
[1728366197008,0.11406012,62544.0,62543.0,0.002]
[1728366200326,0.23406012,62544.0,62543.0,0.002]
[1728366200512,0.29142855,62544.0,62543.0,0.002]
[1728366203028,0.184964,62544.0,62543.0,0.002]
[1728366203223,0.064964,62544.0,62543.0,0.002]
[1728366205727,0.064964,62544.0,62543.0,0.185965]
[1728366206929,0.064964,62544.0,62543.0,0.002]
[1728366211039,0.11406037,62544.0,62543.0,0.002]
[1728366215739,0.17143073,62544.0,62543.0,0.002]
[1728366218039,0.064964,62544.0,62543.0,0.002]
[1728366226239,0.17143288,62544.0,62543.0,0.002]
[1728366226837,0.17143294,62544.0,62543.0,0.002]
[1728366228541,0.17143549,62544.0,62543.0,0.002]
[1728366233142,0.11406473,62544.0,62543.0,0.002]
[1728366234156,0.064964,62544.0,62543.0,0.002]
[1728366238247,0.001,62544.0,62543.0,0.002]
[1728366238448,0.001,62544.0,62543.0,0.185965]
[1728366242045,0.001,62544.0,62543.0,0.065965]
[1728366244955,0.121,62544.0,62543.0,0.065965]
[1728366245152,0.001,62544.0,62543.0,0.065965]
[1728366246446,0.001,62544.0,62543.0,0.002]
[1728366246650,0.184964,62544.0,62543.0,0.002]
[1728366248359,0.23406235,62544.0,62543.0,0.002]
[1728366256160,0.184964,62544.0,62543.0,0.002]
[1728366263272,0.29143763,62544.0,62543.0,0.002]
[1728366263776,0.65223763,62544.0,62543.0,0.002]
[1728366267077,0.6522382,62544.0,62543.0,0.002]
[1728366268392,0.063971,62537.0,62536.0,0.0037]
[1728366268686,0.063975,62534.0,62530.0,0.183978]
[1728366269479,0.063975,62533.0,62530.0,0.183978]
[1728366270273,0.063975,62533.0,62530.0,0.184978]
[1728366270490,0.0303,62536.0,62530.0,0.184978]
[1728366270689,0.063977,62532.0,62530.0,0.184978]
[1728366270994,0.063977,62532.0,62530.0,0.121]
[1728366271295,0.063977,62532.0,62530.0,0.122]
[1728366271787,0.063977,62531.0,62530.0,0.001]
[1728366271989,0.063977,62531.0,62530.0,0.002]
[1728366272385,0.063977,62531.0,62530.0,0.122]
[1728366272787,0.063977,62531.0,62530.0,0.123]
[1728366273584,0.063977,62531.0,62530.0,0.126]
[1728366274296,0.063977,62531.0,62530.0,0.127]
[1728366274587,0.063977,62531.0,62530.0,0.12688]
[1728366275992,0.01893055,62536.0,62530.0,0.12688]
[1728366276288,0.063972,62536.0,62535.0,0.12]
[1728366277485,0.065972,62536.0,62535.0,0.12]
[1728366281685,0.063974,62535.0,62533.0,0.12]
[1728366284189,0.064974,62535.0,62533.0,0.12]
[1728366286298,0.04910253,62534.0,62533.0,0.12]
[1728366286498,0.11307653,62534.0,62533.0,0.12]
[1728366287798,0.11307653,62534.0,62533.0,0.121]
[1728366293296,0.063974,62534.0,62533.0,0.121]
[1728366294391,0.01881981,62537.0,62533.0,0.184975]
[1728366294594,0.09697,62538.0,62533.0,0.184975]
[1728366295399,0.09697,62538.0,62533.0,0.121]
[1728366295598,0.09697,62538.0,62535.0,0.063973]
[1728366296500,0.033,62538.0,62537.0,0.063971]
[1728366297301,0.035,62538.0,62537.0,0.063971]
[1728366297797,0.05151288,62538.0,62537.0,0.063971]
[1728366297996,0.05351288,62538.0,62537.0,0.063971]
[1728366300209,0.035,62538.0,62537.0,0.063971]
[1728366300597,0.035,62538.0,62537.0,0.543691]
[1728366300798,0.0037,62544.0,62543.0,0.063965]
[1728366300994,0.0302,62546.0,62543.0,0.544765]
[1728366301200,0.0302,62546.0,62544.0,0.063964]
[1728366301394,0.04909355,62545.0,62544.0,0.063964]
[1728366302703,0.04909355,62545.0,62544.0,0.184964]
[1728366302704,0.05109355,62545.0,62544.0,0.184964]
[1728366303908,0.05109355,62545.0,62544.0,0.185964]
[1728366305009,0.002,62545.0,62544.0,0.185964]
[1728366307511,0.002,62545.0,62544.0,0.122]
[1728366308904,0.002,62545.0,62544.0,0.002]
[1728366309212,0.185963,62545.0,62544.0,0.002]
[1728366309412,0.063964,62544.0,62543.0,0.3109]
[1728366309614,0.063971,62537.0,62536.0,0.0149]
[1728366309912,0.063973,62536.0,62530.0,0.48319883]
[1728366310106,0.0319,62536.0,62532.0,0.063976]
[1728366310306,0.0319,62536.0,62533.0,0.12]
[1728366310509,0.0319,62536.0,62534.0,0.063974]
[1728366312718,0.0329,62536.0,62534.0,0.063974]
[1728366313113,0.001,62536.0,62535.0,0.063973]
[1728366315914,0.01951136,62536.0,62535.0,0.063973]
[1728366317220,0.08348336,62536.0,62535.0,0.063973]
[1728366317611,0.13258448,62536.0,62535.0,0.063973]